bitfinex/quotes_ETHUSD_20220111
["timestamp","ask_amount","ask_price","bid_price","bid_amount"]
[1641868717006,9.5952772,3115.6,3115.5,0.00801534]
[1641868717408,12.32515978,3115.6,3115.5,0.00801534]
[1641868718108,6.77515978,3115.6,3115.5,0.00801534]
[1641868719009,2.72988258,3115.6,3115.5,0.00801534]
[1641868719213,2.72988258,3115.6,3114.3,1.68257911]
[1641868719214,2.72988258,3115.6,3114.3,1.52291591]
[1641868719410,3.94954137,3115.5,3114.3,1.52291591]
[1641868719608,3.95579403,3115.5,3114.3,1.52291591]
[1641868719808,1.2137,3115.4,3114.3,1.52291591]
[1641868720061,3.94358258,3115.4,3114.3,1.52291591]
[1641868720258,0.00511581,3115.3,3114.3,1.52291591]
[1641868720463,3.90141926,3115.3,3114.3,1.52291591]
[1641868720658,0.00454739,3115.2,3114.3,1.52291591]
[1641868721061,0.00397897,3115.1,3114.3,1.52291591]
[1641868721259,0.00397897,3115.1,3114.3,2.82291591]
[1641868721458,0.00341054,3115.0,3114.3,1.82291591]
[1641868721659,0.00341054,3115.0,3114.5,0.00704814]
[1641868721858,0.00284212,3114.9,3114.5,0.00704814]
[1641868722159,0.0022737,3114.8,3114.5,0.00704814]
[1641868722560,0.00170527,3114.7,3114.5,0.00704814]
[1641868722960,0.00113685,3114.6,3114.5,0.00704814]
[1641868724809,0.00113685,3114.6,3114.5,1.48582691]
[1641868725009,0.00113685,3114.6,3114.5,1.78582691]
[1641868725412,0.00113685,3114.6,3114.5,2.08582691]
[1641868725717,0.01047691,3115.3,3114.6,5.65]
[1641868725913,0.01047691,3115.3,3114.7,4.75687592]
[1641868726110,0.00284212,3115.1,3114.8,0.462]
[1641868726413,0.01047691,3115.3,3114.9,3.89056267]
[1641868726414,0.00227369,3115.0,3114.9,3.89056267]
[1641868726612,0.00227369,3115.0,3114.9,5.95256267]
[1641868726811,0.00341054,3115.0,3114.9,7.10604514]
[1641868727553,0.00341054,3115.0,3114.9,3.29572247]
[1641868727953,0.00341054,3115.0,3114.9,2.29572247]
[1641868728153,0.00341054,3115.0,3114.9,3.29572247]
[1641868728954,0.00341054,3115.0,3114.9,0.84224]
[1641868729156,0.00341054,3115.0,3114.9,0.38024]
[1641868729355,0.00341054,3115.0,3114.9,0.08024]
[1641868729756,0.00341054,3115.0,3114.6,0.08024]
[1641868729958,0.00341054,3115.0,3114.6,1.53739316]
[1641868730163,0.00170527,3114.9,3114.6,1.53739316]
[1641868730455,0.00113685,3114.8,3114.6,1.53739316]
[1641868730859,0.08366054,3115.2,3114.6,2.13739316]
[1641868731060,0.00341054,3115.2,3114.7,0.08024]
[1641868731509,0.08365054,3115.2,3114.6,2.59939316]
[1641868731807,0.01116446,3114.9,3114.8,0.00703773]
[1641868732208,0.01286973,3114.9,3114.8,0.00703773]
[1641868733610,0.01286973,3114.9,3114.8,2.35703773]
[1641868733809,0.01286973,3114.9,3114.8,2.65703773]
[1641868734510,0.01286973,3114.9,3114.8,3.65703773]
[1641868734710,0.01286973,3114.9,3114.8,2.65703773]
[1641868734955,0.01286973,3114.9,3114.8,0.30703773]
[1641868736659,0.01167104,3114.9,3114.8,0.30703773]
[1641868737658,0.01167104,3114.9,3114.8,3.35703773]
[1641868738462,0.00177104,3114.9,3114.8,4.35703773]
[1641868738709,0.00177104,3114.9,3114.8,8.25908773]
[1641868738906,0.00177104,3114.9,3114.8,5.65908773]
[1641868741609,0.00432034,3114.9,3114.8,5.66551364]
[1641868744365,0.00170527,3114.9,3114.8,5.66551364]
[1641868744566,0.00170527,3114.9,3114.8,6.46789364]
[1641868744766,7.504,3115.6,3114.9,5.65]
[1641868744973,2.72977395,3115.5,3115.2,5.773]
[1641868745168,2.73318449,3115.5,3115.4,18.97]
[1641868745366,3.81968449,3115.6,3115.5,4.2]
[1641868745566,3.81968449,3115.6,3115.5,3.90674386]
[1641868745767,3.81968449,3115.6,3115.5,1.92734]
[1641868745969,3.81968449,3115.6,3115.5,0.462]
[1641868746213,3.81968449,3115.6,3115.2,1.0]
[1641868746405,3.81968449,3115.6,3115.2,0.3]
[1641868746607,3.81968449,3115.6,3115.5,0.00857781]
[1641868748009,3.89992449,3115.6,3115.5,0.00857781]
[1641868748408,9.54992449,3115.6,3115.5,0.00857781]
[1641868748605,5.73024,3115.6,3115.5,0.00857781]
[1641868749412,14.50794,3115.6,3115.5,0.00857781]
[1641868749607,20.59355541,3115.6,3115.5,0.00857781]
[1641868750258,24.68846386,3115.6,3115.5,0.00857781]
[1641868750660,20.59355541,3115.6,3115.5,0.00857781]
[1641868751361,24.68846386,3115.6,3115.5,0.00857781]
[1641868751563,24.6985762,3115.6,3115.3,0.0086544]
[1641868751768,0.08024,3115.5,3115.3,0.0086544]
[1641868753066,1.12754315,3115.2,3114.1,0.08024]
[1641868753264,1.31055,3115.1,3114.1,0.08024]
[1641868753463,1.31055,3115.1,3114.2,0.00625265]
[1641868754509,2.54942993,3115.1,3114.2,0.00625265]
[1641868755108,1.31055,3115.1,3114.2,0.00625265]
[1641868755709,3.86516554,3115.0,3114.2,0.00625265]
[1641868755909,1.31055,3115.1,3114.1,0.00682108]
[1641868756111,3.83396691,3115.0,3114.2,0.3]
[1641868756310,1.31055,3115.1,3114.2,0.3]
[1641868756611,0.00673176,3115.0,3114.4,0.00661605]
[1641868757010,3.83130338,3115.0,3114.5,0.00454738]
[1641868757213,0.08025,3114.9,3114.5,0.00454738]
[1641868758458,0.00673176,3115.0,3114.5,0.00454738]
[1641868758459,4.0319673,3115.0,3114.5,0.00454738]
[1641868759466,0.08698176,3115.0,3114.5,0.00454738]
[1641868760559,0.03698176,3115.0,3114.5,0.00454738]
[1641868760759,0.08026,3115.0,3114.5,0.00454738]
[1641868761060,0.08026,3115.0,3114.5,1.28345916]
[1641868761517,3.4,3114.9,3114.5,1.23289074]
[1641868761720,3.40170527,3114.9,3114.7,0.00660563]
[1641868763923,7.22787549,3114.8,3114.7,0.00660563]
[1641868764122,3.35,3114.8,3114.7,0.00660563]
[1641868764726,7.39297474,3114.8,3114.7,0.00660563]
[1641868764958,3.35,3114.8,3114.7,0.00660563]
[1641868765158,0.00170527,3114.9,3114.7,0.00660563]
[1641868765459,2.73092423,3114.8,3114.7,0.00660563]
[1641868766262,2.7326295,3114.9,3114.7,0.00660563]
[1641868766658,2.73590463,3114.9,3114.8,0.00578697]
[1641868767958,2.81615463,3114.9,3114.8,0.00578697]
[1641868770010,2.76615463,3114.9,3114.8,0.00578697]
[1641868771209,2.68590463,3114.9,3114.8,0.00578697]
[1641868771610,2.68590463,3114.9,3114.8,0.01610935]
[1641868771808,2.68590463,3114.9,3114.8,0.72200935]
[1641868772007,1.62951541,3115.3,3114.8,1.02200935]
[1641868772210,13.70591541,3115.6,3114.8,1.02200935]
[1641868772465,0.00170527,3115.2,3114.8,1.02200935]
[1641868772864,0.00113685,3115.1,3114.8,0.31610935]
[1641868773264,0.08365054,3115.5,3114.8,0.01610935]
[1641868773563,0.00284212,3115.4,3114.8,0.01610935]
[1641868773766,0.08024,3115.3,3114.8,0.01610935]
[1641868773964,0.08251369,3115.3,3114.8,0.01610935]
[1641868775170,0.01863483,3115.2,3114.8,0.01610935]
[1641868775369,1.31681369,3115.3,3114.8,0.01610935]
[1641868775370,0.08024,3115.1,3114.8,0.01610935]
[1641868775566,0.00113685,3115.1,3114.8,0.01610935]
[1641868775765,0.08024,3115.0,3114.8,0.01610935]
[1641868776607,0.08024,3115.0,3114.7,0.00508426]
[1641868778212,0.03024,3115.0,3114.7,0.00508426]
[1641868778412,0.08026,3115.0,3114.7,0.00508426]
[1641868781682,0.08026,3115.0,3114.9,0.01032961]
[1641868782083,4.88026,3115.0,3114.9,0.01032961]
[1641868786715,4.88026,3115.0,3114.9,0.01033661]
[1641868787115,6.50977541,3115.0,3114.9,0.01033661]
[1641868787859,4.88026,3115.0,3114.9,0.01033661]
[1641868788065,0.01257023,3114.8,3114.0,0.7599098]
[1641868788260,1.20078465,3114.4,3114.0,0.7599098]
[1641868788461,0.0096922,3114.3,3114.1,0.00454739]
[1641868788662,3.94538404,3114.7,3114.1,0.00454739]
[1641868789363,1.21369334,3114.4,3114.1,0.00454739]
[1641868789564,3.97696611,3114.3,3114.1,0.00454739]
[1641868789762,5.73026,3114.2,3114.1,0.00454739]
[1641868789962,10.07180573,3114.2,3114.1,0.00454739]
[1641868790665,12.80342808,3114.2,3114.1,0.00454739]
[1641868791806,12.80593018,3114.2,3114.1,0.01161405]
[1641868793009,13.16538473,3114.2,3114.1,0.01161405]
[1641868793410,8.823839,3114.2,3114.1,0.01161405]
[1641868794414,10.454002,3114.2,3114.1,0.01161405]
[1641868795764,14.45282975,3114.2,3114.1,0.01161405]
[1641868796761,14.45679055,3114.2,3114.1,0.01161405]
[1641868796960,14.37653055,3114.2,3114.1,0.01161405]
[1641868797162,12.82662755,3114.2,3114.1,0.01161405]
[1641868797761,12.66809641,3114.2,3114.1,0.01161405]
[1641868798162,8.8277998,3114.2,3114.1,0.01161405]
[1641868798363,12.64159203,3114.2,3114.1,0.01161405]
[1641868799310,14.10926048,3114.2,3114.1,0.01161405]
[1641868799807,10.29546825,3114.2,3114.1,0.01161405]
[1641868800007,14.24011251,3114.2,3114.1,0.01161405]
[1641868800208,10.4579628,3114.2,3114.1,0.01161405]
[1641868800610,10.3777028,3114.2,3114.1,0.01161405]
[1641868800810,8.7475398,3114.2,3114.1,0.01161405]
[1641868801608,8.74691428,3114.2,3114.1,0.01161405]
[1641868804761,12.57881502,3114.2,3114.1,0.01161405]
[1641868804960,12.63462628,3114.2,3114.1,0.01161405]
[1641868805162,12.66421899,3114.2,3114.1,0.01161405]
[1641868805364,12.65223343,3114.2,3114.1,0.01161405]
[1641868805562,8.82717428,3114.2,3114.1,0.01161405]
[1641868805863,12.7166916,3114.2,3114.1,0.01161405]
[1641868806312,12.70764825,3114.2,3114.1,0.01161405]
[1641868806709,8.82717428,3114.2,3114.1,0.01161405]
[1641868807310,8.74691428,3114.2,3114.1,0.01161405]
[1641868810158,9.74691428,3114.2,3114.1,0.01161405]
[1641868810557,9.82717428,3114.2,3114.1,0.01161405]
[1641868810758,5.6,3114.1,3112.6,3.80761164]
[1641868810957,0.08028,3114.0,3112.5,7.9837]
[1641868811161,0.08028,3114.0,3112.7,0.00795793]
[1641868811958,2.73162235,3113.9,3112.7,1.18545845]
[1641868812159,2.73162235,3113.9,3112.7,1.43545845]
[1641868812359,2.73162235,3113.9,3112.8,0.0073895]
[1641868813561,4.6,3113.8,3112.7,1.33489002]
[1641868813817,4.60568423,3113.8,3112.7,1.33489002]
[1641868814614,2.73162235,3113.7,3112.7,1.33489002]
[1641868815015,0.00454739,3113.6,3112.7,1.33489002]
[1641868815415,0.00397896,3113.5,3112.7,1.33489002]
[1641868815815,0.00341054,3113.4,3112.7,1.33489002]
[1641868816216,0.00284212,3113.3,3112.7,1.33489002]
[1641868816617,0.00227369,3113.2,3112.9,0.00891673]
[1641868817016,0.00170527,3113.1,3112.9,0.00891673]
[1641868817472,4.45113685,3113.0,3112.9,0.00891673]
[1641868817672,5.60113685,3113.0,3112.9,0.00891673]
[1641868818272,7.03114796,3113.0,3112.9,0.00891673]
[1641868818473,5.60113685,3113.0,3112.9,0.00891673]
[1641868818977,9.60137206,3113.0,3112.9,0.00891673]
[1641868819174,6.55502685,3113.0,3112.9,0.00891673]
[1641868819575,9.2866492,3113.0,3112.9,0.00891673]
[1641868820074,10.74125819,3113.0,3112.9,0.00891673]
[1641868821075,14.64652978,3113.0,3112.9,0.00891673]
[1641868821315,14.5626871,3113.0,3112.9,0.00891673]
[1641868821515,14.64378014,3113.0,3112.9,0.00891673]
[1641868821715,0.00901765,3112.9,3112.0,0.3]
[1641868821916,0.08032,3112.8,3111.9,0.00891673]
[1641868822113,3.92434013,3112.8,3112.1,0.00397897]
[1641868822413,3.89796139,3112.8,3112.1,0.00397897]
[1641868822714,2.73162235,3112.7,3112.1,0.00397897]
[1641868822911,0.08032,3112.6,3112.1,0.00397897]
[1641868824119,2.73162235,3112.7,3112.1,0.00397897]
[1641868824317,2.73162235,3112.5,3112.2,0.00687758]
[1641868824522,2.73162235,3112.5,3112.1,0.00397897]
[1641868824716,2.73162235,3112.5,3112.3,0.00284212]
[1641868824963,5.7051,3112.9,3112.3,0.00284212]
[1641868825563,2.73243624,3112.8,3112.3,0.00284212]
[1641868825761,0.08031,3112.7,3112.3,0.00284212]
[1641868825962,2.81275624,3112.8,3112.3,0.00284212]
[1641868826263,2.81275624,3112.8,3112.0,0.00454739]
[1641868826662,2.81275624,3112.8,3112.5,0.00894455]
[1641868826663,2.81661649,3112.8,3112.5,0.00894455]
[1641868826963,2.73243624,3112.7,3112.6,0.00113685]
[1641868827165,2.81274624,3112.7,3112.6,0.00113685]
[1641868827564,6.61274624,3112.7,3112.6,0.00113685]
[1641868828269,7.66024624,3112.7,3112.6,0.00113685]
[1641868829518,2.81274624,3112.7,3112.6,0.00113685]
[1641868829726,2.73243624,3112.7,3112.6,0.00113685]
[1641868831321,3.86663624,3112.7,3112.6,0.00113685]
[1641868831520,6.81663624,3112.7,3112.6,0.00113685]
[1641868831720,6.81663624,3112.7,3112.6,0.01007445]
[1641868831922,6.89694624,3112.7,3112.6,0.01007445]
[1641868832119,3.94694624,3112.7,3112.6,0.01007445]
[1641868832565,7.46663624,3112.7,3112.6,0.01007445]
[1641868832763,7.54694624,3112.7,3112.6,0.01007445]
[1641868835165,3.94694624,3112.7,3112.6,3.21007445]
[1641868835365,2.81274624,3112.7,3112.6,3.21007445]
[1641868838215,2.73243624,3112.7,3112.6,3.21007445]
[1641868838416,2.81274624,3112.7,3112.6,3.21007445]
[1641868839419,2.73243624,3112.7,3112.6,3.21007445]
[1641868840270,2.73243624,3112.8,3112.6,3.21007445]
[1641868840471,3.83031,3112.7,3112.6,3.21007445]
[1641868840971,6.56274624,3112.7,3112.6,3.21007445]
[1641868841171,6.48243624,3112.7,3112.6,3.21007445]
[1641868846119,6.48243624,3112.7,3112.6,3.16007445]
[1641868846616,6.48898706,3112.7,3112.6,3.16664615]
[1641868849864,6.48898706,3112.7,3112.6,3.11664615]
[1641868850565,6.56929706,3112.7,3112.6,3.11664615]
[1641868851427,8.1957165,3112.7,3112.6,3.11664615]
[1641868851629,6.56929706,3112.7,3112.6,3.11855238]
[1641868852226,8.1957165,3112.7,3112.6,3.11855238]
[1641868855763,8.1154065,3112.7,3112.6,3.11855238]
[1641868856264,6.48898706,3112.7,3112.6,3.11855238]
[1641868856563,8.12097965,3112.7,3112.6,3.11855238]
[1641868857764,6.48898706,3112.7,3112.6,3.11855238]
[1641868860624,2.73898706,3112.7,3112.6,3.11855238]
[1641868861020,5.14992063,3112.7,3112.6,3.11855238]
[1641868861418,1.64256111,3112.7,3112.6,3.11855238]
[1641868862019,2.73898706,3112.7,3112.6,3.11855238]
[1641868862220,5.13898706,3112.7,3112.6,3.11855238]
[1641868862469,2.73898706,3112.7,3112.6,3.11855238]
[1641868863272,2.73898706,3112.7,3112.6,3.01855238]
[1641868867015,2.73898706,3112.7,3112.6,4.08095238]
[1641868867216,2.73898706,3112.7,3112.6,5.20777104]
[1641868867617,2.73898706,3112.7,3112.6,4.08095238]
[1641868868616,2.73898706,3112.7,3112.6,3.01855238]
[1641868871264,2.73898706,3112.7,3112.6,2.96855238]
[1641868871765,2.73898706,3112.7,3112.6,2.86855238]
[1641868885073,0.08207072,3113.1,3112.7,5.46392757]
[1641868885268,2.41093357,3113.4,3112.9,4.6]
[1641868885467,2.41093357,3113.4,3113.0,0.84229]
[1641868885668,2.41093357,3113.4,3113.0,1.14229]
[1641868885966,2.41093357,3113.9,3113.0,1.14229]
[1641868886169,2.41093357,3113.9,3113.6,2.59957962]
[1641868886766,2.41093357,3113.9,3113.6,1.32493649]
[1641868887267,2.49122357,3114.3,3113.6,1.32493649]
[1641868887667,0.00795793,3114.0,3113.6,1.32493649]
[1641868888070,0.00738951,3113.9,3113.6,1.32493649]
[1641868888467,0.00682108,3113.8,3113.6,1.32493649]
[1641868888716,0.00682108,3113.8,3113.4,0.84228]
[1641868888920,0.08653266,3113.7,3113.1,0.00423041]
[1641868889118,0.01759981,3113.6,3113.1,0.00423041]
[1641868889318,0.08028,3113.5,3113.1,0.00423041]
[1641868889516,0.08539581,3113.5,3113.1,0.00423041]
[1641868889715,0.00454739,3113.4,3113.1,0.00423041]
[1641868889915,0.01606712,3113.3,3113.1,0.00423041]
[1641868890121,0.02004609,3113.3,3113.1,0.00423041]
[1641868890316,0.00341054,3113.2,3113.1,0.00423041]
[1641868890516,0.00341054,3113.2,3112.6,1.27513634]
[1641868890720,0.00341054,3113.2,3112.7,0.08031]
[1641868890917,0.00284212,3113.1,3112.7,0.08031]
[1641868891118,0.00938705,3113.6,3112.7,0.08031]
[1641868891320,0.08031,3113.7,3112.8,0.00170527]
[1641868891521,0.00284212,3113.6,3112.8,0.00170527]
[1641868891720,0.08029,3113.5,3113.2,0.00422763]
[1641868891918,0.08256369,3113.5,3113.2,0.00422763]
[1641868892120,0.00170527,3113.4,3113.2,0.00422763]
[1641868892570,0.00113685,3113.3,3113.2,0.00422763]
[1641868893868,2.75113685,3113.3,3113.2,0.00422763]
[1641868895671,2.75113685,3113.3,3113.2,3.20422763]
[1641868896621,2.75113685,3113.3,3113.2,0.00847703]
[1641868896916,5.65113685,3113.3,3113.2,0.00847703]
[1641868897617,2.75113685,3113.3,3113.2,0.00847703]
[1641868900769,5.25113685,3113.3,3113.2,0.00847703]
[1641868901570,2.75113685,3113.3,3113.2,0.00847703]
[1641868901771,2.75113685,3113.3,3112.7,0.01075073]
[1641868905719,2.73219288,3113.2,3112.7,0.01075073]
[1641868906320,2.73219288,3113.2,3112.7,3.11075073]
[1641868906620,2.73219288,3113.2,3112.9,0.00849789]
[1641868908072,0.00113685,3113.3,3112.9,0.00849789]
[1641868908073,2.73332973,3113.3,3112.9,0.00849789]
[1641868908472,5.65,3113.2,3112.7,3.06077159]
[1641868908676,0.08029,3113.1,3112.7,3.06077159]
[1641868908874,2.81475658,3113.1,3112.7,3.06077159]
[1641868909073,0.00170528,3113.0,3112.7,3.06077159]
[1641868909578,0.00113685,3112.9,3112.7,3.06077159]
[1641868909974,2.73389816,3113.0,3112.7,3.06077159]
[1641868910374,0.00113685,3112.9,3112.7,3.06077159]
[1641868910974,4.83031,3112.8,3112.7,3.06077159]
[1641868912322,7.56250288,3112.8,3112.7,3.06077159]
[1641868914025,10.19195789,3112.8,3112.7,3.06077159]
[1641868914523,9.19195789,3112.8,3112.7,3.06077159]
[1641868915173,7.56250288,3112.8,3112.7,3.06077159]
[1641868916676,8.56250288,3112.8,3112.7,3.06077159]
[1641868917076,10.19195789,3112.8,3112.7,3.06077159]
[1641868918282,5.69848506,3112.7,3111.3,6.6864254]
[1641868918481,0.02450721,3112.5,3111.3,6.6864254]
[1641868918729,0.0121109,3112.1,3111.4,0.0073895]
[1641868918932,0.08033,3112.0,3111.4,0.0073895]
[1641868919328,1.70978501,3112.0,3111.4,0.0073895]
[1641868919531,4.22131508,3111.9,3111.4,0.0073895]
[1641868919728,0.01850992,3111.7,3111.4,0.0073895]
[1641868919932,0.08033,3111.6,3111.4,0.0073895]
[1641868920127,0.08033,3111.7,3111.3,1.49e-05]
[1641868920428,0.01399322,3111.6,3111.3,1.49e-05]
[1641868920730,0.08033,3111.5,3110.0,5.4914149]
[1641868921127,1.08033,3111.5,3110.1,0.00738951]
[1641868921325,1.1644,3111.4,3110.1,0.00738951]
[1641868921528,0.08035,3111.3,3110.1,1.20113987]
[1641868921926,1.08035,3111.3,3110.2,0.00682108]
[1641868922126,2.73219288,3111.2,3110.2,0.00682108]
[1641868922327,0.08035,3111.1,3110.2,0.00682108]
[1641868922772,0.08035,3111.1,3110.1,1.19375036]
[1641868922773,4.75,3111.0,3110.1,1.15057144]
[1641868922973,4.75454739,3111.0,3110.1,1.15057144]
[1641868923173,4.75454739,3111.0,3110.1,1.45057144]
[1641868923174,0.00397896,3110.9,3110.1,1.45057144]
[1641868923374,2.73617184,3110.9,3110.1,1.45057144]
[1641868923573,0.00341054,3110.8,3110.1,0.3]
[1641868923877,0.00284212,3110.7,3109.5,2.06964]
[1641868924074,0.00284212,3110.7,3109.5,0.462]
[1641868924276,0.00227369,3110.6,3109.6,0.00341054]
[1641868924675,0.00170527,3110.5,3109.4,3.74875508]
[1641868924877,0.00170527,3110.5,3109.6,1.3271531]
[1641868925083,0.00113685,3110.4,3109.6,1.6271531]
[1641868925276,0.00113685,3110.4,3109.7,0.00284212]
[1641868925479,0.08264369,3110.6,3109.7,0.00284212]
[1641868925976,0.00170527,3110.5,3109.7,0.00284212]
[1641868926525,0.08037,3110.6,3109.7,0.00284212]
[1641868926526,0.00113685,3110.4,3109.9,0.00724474]
[1641868926726,0.00397897,3110.4,3110.0,0.47410864]
[1641868926927,0.00341054,3110.3,3110.1,0.08037]
[1641868927128,1.62945501,3111.5,3110.3,4.4]
[1641868927329,1.62945501,3111.5,3110.1,0.08037]
[1641868927527,9.64979997,3111.7,3110.4,1.36369536]
[1641868927528,0.08489739,3111.1,3110.4,1.36369536]
[1641868927732,1.23019739,3111.1,3110.4,1.36369536]
[1641868927927,0.00397897,3111.0,3110.4,1.36369536]
[1641868928129,0.00397897,3111.0,3110.4,1.66369536]
[1641868928330,0.00341054,3110.9,3110.4,1.66369536]
[1641868928732,0.00284212,3110.8,3110.4,3.27094536]
[1641868929135,0.0022737,3110.7,3110.4,3.27094536]
[1641868929534,0.00170527,3110.6,3110.4,3.27094536]
[1641868929973,0.00113685,3110.5,3110.4,3.27094536]
[1641868931574,0.00113685,3110.5,3110.4,4.78130817]
[1641868933176,3.6358,3111.4,3110.5,5.65]
[1641868933375,8.3237,3111.7,3111.2,1.25233803]
[1641868933576,3.80423,3111.7,3111.2,1.55233803]
[1641868933822,0.08033,3111.7,3111.2,1.55233803]
[1641868934023,0.08033,3111.7,3111.2,0.3]
[1641868935124,0.08033,3111.7,3111.4,1.47493712]
[1641868935325,12.5908,3112.2,3111.4,1.47493712]
[1641868935326,0.08033,3112.1,3111.4,1.47493712]
[1641868935531,0.08033,3112.1,3111.8,1.22787322]
[1641868935726,0.00682108,3111.7,3111.4,1.77493712]
[1641868936124,0.00625266,3111.6,3111.4,1.77493712]
[1641868936526,2.90568423,3111.5,3111.4,1.77493712]
[1641868936726,0.00568423,3111.5,3111.4,3.27569617]
[1641868937226,0.00568423,3111.5,3111.4,2.97569617]
[1641868938477,0.00568423,3111.5,3111.4,3.27569617]
[1641868941421,0.00568423,3111.5,3111.4,1.80075905]
[1641868941622,0.00568423,3111.5,3111.4,1.80789934]
[1641868943228,0.00568423,3111.5,3111.4,3.01877172]
[1641868951425,2.7388224,3111.5,3111.4,3.01877172]
[1641868951625,2.7388224,3111.5,3111.4,3.02971683]
[1641868952032,0.00568423,3111.5,3111.4,3.02971683]
[1641868952476,2.7388224,3111.5,3111.4,3.02971683]
[1641868954779,2.7388224,3111.5,3111.4,0.0180854]
[1641868959431,2.7388224,3111.5,3111.3,0.2680854]
[1641868959630,2.7388224,3111.5,3110.8,1.3110306]
[1641868959831,0.00511581,3111.4,3110.8,1.3110306]
[1641868960275,0.00454739,3111.3,3110.7,0.80354]
[1641868960475,2.73768556,3111.3,3110.9,1.24800347]
[1641868960675,0.00397896,3111.2,3110.9,1.24800347]
[1641868961073,2.73654871,3111.1,3110.9,1.24800347]
[1641868961275,2.73654871,3111.1,3110.9,1.54800347]
[1641868961577,0.00284212,3111.0,3110.9,3.03654464]
[1641868961773,0.00284212,3111.0,3110.9,3.04484469]
[1641868962674,2.73598029,3111.0,3110.9,3.04484469]
[1641868963722,0.00284212,3111.0,3110.9,3.04484469]
[1641868966428,2.71644181,3111.2,3111.1,18.97]
[1641868966634,2.71644181,3111.2,3111.1,19.432]
[1641868966827,0.00113684,3111.2,3111.1,20.81235]
[1641868967027,1.62945501,3112.0,3111.1,19.51235]
[1641868967226,1.62945501,3112.0,3111.4,0.8034]
[1641868967480,0.00341054,3111.8,3111.4,1.99922517]
[1641868967879,0.00284212,3111.7,3111.4,1.99922517]
[1641868968281,1.70978501,3112.2,3111.4,1.99922517]
[1641868968282,0.0022737,3111.6,3111.4,1.99922517]
[1641868968480,0.0022737,3111.6,3111.4,1.19582517]
[1641868968681,0.00170527,3111.5,3111.4,1.19582517]
[1641868970583,0.00170527,3111.5,3111.4,2.35035475]
[1641868971724,0.00795526,3111.5,3111.4,2.35863055]
[1641868974992,0.00795526,3111.5,3111.4,6.09628304]
[1641868975291,1.62945501,3112.1,3111.4,6.09628304]
[1641868975292,1.62945501,3112.1,3111.6,0.02806483]
[1641868975493,1.62945501,3112.1,3111.7,0.80329]
[1641868975690,0.0022737,3111.9,3111.8,1.2840509]
[1641868975889,0.0022737,3111.9,3111.8,6.11527]
[1641868976493,0.0022737,3111.9,3111.8,25.08527]
[1641868976691,1.62945501,3112.5,3111.9,3.2]
[1641868976890,1.62945501,3112.5,3112.2,0.80315]
[1641868977195,4.09490845,3112.6,3112.2,0.80315]
[1641868977196,0.00284211,3112.4,3112.3,1.10315]
[1641868977390,0.00284211,3112.4,3112.3,3.76280665]
[1641868977591,0.00341054,3112.5,3112.3,2.95965665]
[1641868978825,0.00341054,3112.5,3112.3,3.76279665]
[1641868981730,0.00341054,3112.5,3112.4,4.14037385]
[1641868981930,0.00341054,3112.5,3112.4,7.37069385]
[1641868982129,0.00341054,3112.5,3112.4,27.34069385]
[1641868982332,1.62945501,3113.0,3112.4,24.19069385]
[1641868982578,1.62945501,3113.0,3112.6,2.40896]
[1641868982777,0.00227369,3112.9,3112.7,5.78392787]
[1641868982977,0.00227369,3112.9,3112.8,1.4807013]
[1641868983177,1.62945501,3113.3,3112.8,1.9427013]
[1641868983577,0.00397896,3113.2,3112.8,1.9427013]
[1641868983779,0.00397896,3113.2,3112.8,2.2427013]
[1641868983977,0.00341054,3113.1,3112.8,2.2427013]
[1641868984375,0.00284212,3113.0,3112.8,2.2427013]
[1641868984775,0.00227369,3112.9,3112.8,2.2427013]
[1641868985977,0.00227369,3112.9,3112.8,1.9427013]
[1641868986631,0.00227369,3112.9,3112.8,1.94914828]
[1641868990776,0.00227369,3112.9,3112.8,2.24914828]
[1641868991177,0.00227369,3112.9,3112.8,3.24914828]
[1641868992280,0.00227369,3112.9,3112.8,2.24914828]
[1641868993734,0.00227369,3112.9,3112.8,3.24914828]
[1641868993928,0.00227369,3112.9,3112.8,3.32945828]
[1641868997583,2.7319742,3113.7,3113.2,0.80289]
[1641868997980,0.00397897,3113.6,3113.3,0.3]
[1641868998381,0.00341054,3113.5,3113.3,0.3]
[1641868998578,0.00341054,3113.5,3113.4,2.53081346]
[1641868998777,2.7319742,3113.7,3113.4,2.53081346]
[1641868998980,2.7319742,3113.5,3113.4,2.53081346]
[1641868999177,2.7319742,3113.5,3113.4,1.37454745]
[1641868999376,2.7319742,3113.5,3113.3,0.3]
[1641868999577,0.00397897,3113.6,3113.1,1.062]
[1641868999779,0.00284212,3113.4,3113.1,0.762]
[1641868999977,0.00341054,3113.5,3113.1,0.762]
[1641869000180,0.0022737,3113.3,3113.1,1.65278298]
[1641869000379,2.73481632,3113.4,3113.1,1.65278298]
[1641869000582,0.00170527,3113.2,3113.1,0.462]
[1641869000782,0.0022737,3113.3,3113.1,0.462]
[1641869001078,0.00170527,3113.2,3113.1,0.462]
[1641869001732,0.00170527,3113.2,3113.1,0.46899716]
[1641869002930,0.00170527,3113.2,3113.1,0.41899716]
[1641869006676,0.00845191,3113.2,3113.1,0.42750282]
[1641869008282,2.74014168,3113.2,3113.1,0.42750282]
[1641869009431,0.00845191,3113.2,3113.1,0.42750282]
[1641869010131,2.74011864,3113.2,3113.1,0.42750282]
[1641869010835,0.00845191,3113.2,3113.1,0.42750282]
[1641869011332,2.74011864,3113.2,3113.1,0.42750282]
[1641869011732,0.00845191,3113.2,3113.1,0.42750282]
[1641869011935,0.00845191,3113.2,3113.1,0.00850566]
[1641869014178,2.74004928,3113.2,3113.1,0.00850566]
[1641869014578,0.00845191,3113.2,3113.1,0.00850566]
[1641869015278,2.74004928,3113.2,3113.1,0.00850566]
[1641869016528,2.74004928,3113.2,3113.0,0.30850566]
[1641869016929,0.00113685,3113.1,3113.0,0.30850566]
[1641869017731,2.73273422,3113.1,3113.0,0.30850566]
[1641869018535,2.73273422,3113.1,3113.0,0.20850566]
[1641869021681,2.73950758,3113.1,3113.0,0.20850566]
[1641869023284,2.73950758,3113.1,3113.0,0.28879566]
[1641869024531,2.73950758,3113.1,3113.0,0.20850566]
[1641869024928,2.73950758,3113.1,3113.0,1.20850566]
[1641869025331,1.62945501,3113.7,3113.1,5.6]
[1641869025532,1.62945501,3113.7,3113.2,24.16401322]
[1641869025731,1.62945501,3113.7,3113.3,0.88304]
[1641869025732,0.00284212,3113.6,3113.3,0.88304]
[1641869025931,6.50584202,3114.0,3113.4,0.462]
[1641869026133,6.50584202,3114.0,3113.5,0.08028]
[1641869026334,0.00170527,3113.9,3113.7,2.35100301]
[1641869026537,0.00170527,3113.9,3113.8,0.762]
[1641869026731,20.79641357,3114.7,3113.8,0.762]
[1641869026932,19.65801357,3114.7,3113.8,0.762]
[1641869027232,6.51152625,3114.6,3113.8,0.762]
[1641869027481,6.51152625,3114.6,3114.1,0.3]
[1641869027677,0.00511581,3114.5,3114.2,1.41200168]
[1641869027878,0.00511581,3114.5,3114.1,0.3]